[Event "Turkish Youth Championship 2024"]
[Site "Samsun"]
[Date "2024.05.24"]
[Round "9"]
[White "Yilmaz, Kerem Tuna"]
[Black "Nurdogan, Ilgin Destina"]
[Result "1-0"]
[ECO "B50"]
[WhiteElo "2039"]
[BlackElo "1699"]
[Annotator "RC"]
[PlyCount "65"]
[EventDate "2024.05.18"]
[EventType "swiss"]
[EventCountry "TUR"]
[SourceTitle "playchess.com"]
[Source "ChessBase"]
[SourceQuality "1"]
[TimeControl "5400+30"]

1. e4 {[%emt 0:01:00]} c5 {[%emt 0:01:00]} 2. Nf3 {[%emt 0:00:00]} d6 {[%emt 0:00:00]} 3. c3 {[%emt 0:00:00]} Nf6 {[%emt 0:01:00]} 4. Be2 {[%emt 0:01:30]} g6 {[%emt 0:00:30]} 5. O-O {[%emt 0:00:30]} Bg7 {[%emt 0:00:00]} 6. Bb5+ {[%emt 0:00:00]} Bd7 {[%emt 0:00:00]} 7. Bxd7+ {[%emt 0:00:00]} Nbxd7 {[%emt 0:00:30]} 8. Qe2 {[%emt 0:02:30]} O-O {[%emt 0:01:30]} 9. d4 {[%emt 0:00:30]} Rc8 {[%emt 0:03:30]} 10. e5 {[%emt 0:03:30]} dxe5 {[%emt 0:03:30]} 11. dxe5 {[%emt 0:00:30]} Nd5 {[%emt 0:09:30]} 12. e6 {[%emt 0:00:30]} N7b6 {[%emt 0:00:00]} 13. exf7+ {[%emt 0:01:30]} Rxf7 {[%emt 0:00:00]} 14. Ng5 {[%emt 0:00:00]} Rf6 {[%emt 0:00:30]} 15. Ne6 {[%emt 0:01:00]} Qd6 {[%emt 0:01:30]} 16. Nxg7 {[%emt 0:00:00]} Kxg7 {[%emt 0:00:30]} 17. Na3 {[%emt 0:04:00]} Nf4 {[%emt 0:06:30]} 18. Bxf4 {[%emt 0:06:30]} Rxf4 {[%emt 0:00:30]} 19. Nb5 {[%emt 0:00:30]} Qf6 {[%emt 0:02:30]} 20. Rae1 {[%emt 0:07:30]} a6 {[%emt 0:03:30]} 21. Qxe7+ {[%emt 0:00:30]} Qxe7 {[%emt 0:01:30]} 22. Rxe7+ {[%emt 0:00:30]} Kf6 {[%emt 0:00:30]} 23. Rxb7 {[%emt 0:00:30]} Nc4 {[%emt 0:00:30]} 24. Nc7 {[%emt 0:00:30]} Ke5 {[%emt 0:00:30]} 25. Nxa6 {[%emt 0:00:30]} Rcf8 {[%emt 0:02:30]} 26. Nxc5 {[%emt 0:00:30]} Kd6 {[%emt 0:00:00]} 27. Nd3 {[%emt 0:00:30]} R4f5 {[%emt 0:00:00]} 28. Rxh7 {[%emt 0:00:30]} Kc6 {[%emt 0:00:30]} 29. Re1 {[%emt 0:00:30]} Kd6 {[%emt 0:01:30]} 30. b3 {[%emt 0:00:30]} Nb6 {[%emt 0:01:30]} 31. c4 {[%emt 0:00:30]} Nd7 {[%emt 0:00:30]} 32. b4 {[%emt 0:00:30]} Nf6 {[%emt 0:01:30]} 33. Rhe7 {[%emt 0:00:30]} 1-0

[Event "Turkish Youth Championship 2024"]
[Site "Samsun"]
[Date "2024.05.24"]
[Round "9"]
[White "Danaci, Ege"]
[Black "Ekinci, Berkay"]
[Result "0-1"]
[ECO "B30"]
[WhiteElo "2031"]
[BlackElo "1891"]
[Annotator "RC"]
[PlyCount "92"]
[EventDate "2024.05.18"]
[EventType "swiss"]
[EventCountry "TUR"]
[SourceTitle "playchess.com"]
[Source "ChessBase"]
[SourceQuality "1"]
[TimeControl "5400+30"]

1. e4 {[%emt 0:01:00]} c5 {[%emt 0:01:00]} 2. Nf3 {[%emt 0:00:30]} Nc6 {[%emt 0:00:30]} 3. Bb5 {[%emt 0:00:30]} e6 {[%emt 0:00:30]} 4. O-O {[%emt 0:00:30]} Nge7 {[%emt 0:00:30]} 5. d4 {[%emt 0:00:00]} cxd4 {[%emt 0:00:30]} 6. Nxd4 {[%emt 0:00:00]} Qb6 {[%emt 0:01:30]} 7. Nxc6 {[%emt 0:00:00]} bxc6 {[%emt 0:03:30]} 8. Bd3 {[%emt 0:00:00]} d5 {[%emt 0:11:30]} 9. c4 {[%emt 0:00:30]} dxe4 {[%emt 0:05:30]} 10. Bxe4 {[%emt 0:00:00]} f5 {[%emt 0:09:30]} 11. Bf3 {[%emt 0:06:00]} e5 {[%emt 0:04:30]} 12. Nc3 {[%emt 0:00:30]} e4 {[%emt 0:04:30]} 13. Bh5+ {[%emt 0:02:30]} g6 {[%emt 0:10:30]} 14. Be3 {[%emt 0:02:30]} Qc7 {[%emt 0:01:30]} 15. Qd4 {[%emt 0:03:30]} Rg8 {[%emt 0:01:30]} 16. Qc5 {[%emt 0:02:30]} Qb7 {[%emt 0:07:30]} 17. Be2 {[%emt 0:07:30]} Nd5 {[%emt 0:01:30]} 18. Qd4 {[%emt 0:00:30]} Bg7 {[%emt 0:01:30]} 19. Qd2 {[%emt 0:00:30]} Nxe3 {[%emt 0:00:30]} 20. fxe3 {[%emt 0:05:30]} Be5 {[%emt 0:05:30]} 21. g4 {[%emt 0:06:30]} Qe7 {[%emt 0:01:30]} 22. Bd1 {[%emt 0:06:30]} Bd7 {[%emt 0:05:30]} 23. Bb3 {[%emt 0:08:30]} Qh4 {[%emt 0:01:30]} 24. Qe2 {[%emt 0:00:30]} fxg4 {[%emt 0:01:32]} 25. c5 {[%emt 0:02:30]} Rg7 {[%emt 0:00:59]} 26. Nxe4 {[%emt 0:04:30]} g3 {[%emt 0:03:01]} 27. Nd6+ {[%emt 0:03:30]} Bxd6 {[%emt 0:00:12]} 28. cxd6 {[%emt 0:00:30]} gxh2+ {[%emt 0:00:42]} 29. Qxh2 {[%emt 0:00:30]} Qg5+ {[%emt 0:01:16]} 30. Kf2 {[%emt 0:00:30]} O-O-O {[%emt 0:04:12]} 31. Qf4 {[%emt 0:01:30]} Qxf4+ {[%emt 0:00:30]} 32. exf4 {[%emt 0:00:30]} Bf5 {[%emt 0:00:13]} 33. Rfe1 {[%emt 0:00:30]} Rxd6 {[%emt 0:00:58]} 34. Rac1 {[%emt 0:00:30]} Rgd7 {[%emt 0:00:23]} 35. Ba4 {[%emt 0:00:30]} Kb7 {[%emt 0:03:08]} 36. Re3 {[%emt 0:00:30]} Rd2+ {[%emt 0:03:59]} 37. Kg3 {[%emt 0:00:30]} R7d6 {[%emt 0:00:39]} 38. Rc4 {[%emt 0:07:30]} Rxb2 {[%emt 0:00:47]} 39. Bb3 {[%emt 0:00:30]} h5 {[%emt 0:01:06]} 40. Re7+ {[%emt 0:00:30]} Bd7 {[%emt 0:02:07]} 41. Rb4+ {[%emt 0:00:30]} Kc7 {[%emt 0:00:00]} 42. Ra4 {[%emt 0:00:30]} Rd3+ {[%emt 0:01:25]} 43. Kh4 {[%emt 0:00:00]} Kd8 {[%emt 0:01:06]} 44. Re5 {[%emt 0:01:00]} Rg2 {[%emt 0:00:16]} 45. Be6 {[%emt 0:00:30]} Bxe6 {[%emt 0:00:30]} 46. Rxe6 {[%emt 0:00:00]} Rg4# {[%emt 0:00:00]} 0-1

[Event "Turkish Youth Championship 2024"]
[Site "Samsun"]
[Date "2024.05.24"]
[Round "9"]
[White "Atis, Hasan"]
[Black "Uzdemir, Ali Poyraz"]
[Result "1-0"]
[ECO "B61"]
[WhiteElo "2014"]
[BlackElo "1898"]
[Annotator "RC"]
[PlyCount "125"]
[EventDate "2024.05.18"]
[EventType "swiss"]
[EventCountry "TUR"]
[SourceTitle "playchess.com"]
[Source "ChessBase"]
[SourceQuality "1"]
[TimeControl "5400+30"]

1. e4 {[%emt 0:01:00]} c5 {[%emt 0:01:00]} 2. Nf3 {[%emt 0:00:30]} d6 {[%emt 0:00:30]} 3. d4 {[%emt 0:00:00]} cxd4 {[%emt 0:00:00]} 4. Nxd4 {[%emt 0:00:00]} Nf6 {[%emt 0:00:00]} 5. Nc3 {[%emt 0:00:30]} Nc6 {[%emt 0:00:30]} 6. Bg5 {[%emt 0:00:00]} Bd7 {[%emt 0:00:30]} 7. Qd2 {[%emt 0:00:00]} Rc8 {[%emt 0:00:30]} 8. O-O-O {[%emt 0:00:30]} Nxd4 {[%emt 0:01:30]} 9. Qxd4 {[%emt 0:00:30]} Qa5 {[%emt 0:00:00]} 10. Be3 {[%emt 0:00:30]} a6 {[%emt 0:18:00]} 11. f3 {[%emt 0:01:30]} g6 {[%emt 0:03:30]} 12. Bc4 {[%emt 0:11:30]} Bg7 {[%emt 0:12:30]} 13. Bb3 {[%emt 0:14:30]} O-O {[%emt 0:01:30]} 14. Qd2 {[%emt 0:00:30]} Qc7 {[%emt 0:03:30]} 15. Bd4 {[%emt 0:02:30]} Be6 {[%emt 0:05:30]} 16. Nd5 {[%emt 0:00:30]} Nxd5 {[%emt 0:02:30]} 17. Bxg7 {[%emt 0:00:30]} Kxg7 {[%emt 0:01:30]} 18. exd5 {[%emt 0:00:00]} Bd7 {[%emt 0:00:30]} 19. h4 {[%emt 0:02:00]} h5 {[%emt 0:05:30]} 20. Qd4+ {[%emt 0:05:30]} f6 {[%emt 0:01:30]} 21. g4 {[%emt 0:00:00]} hxg4 {[%emt 0:04:30]} 22. fxg4 {[%emt 0:00:00]} e5 {[%emt 0:02:30]} 23. dxe6 {[%emt 0:00:30]} Bxe6 {[%emt 0:00:30]} 24. c3 {[%emt 0:01:30]} Bxb3 {[%emt 0:02:30]} 25. axb3 {[%emt 0:00:00]} Rcd8 {[%emt 0:05:30]} 26. Rhe1 {[%emt 0:05:00]} d5 {[%emt 0:02:30]} 27. g5 {[%emt 0:03:30]} Rd6 {[%emt 0:00:30]} 28. Rf1 {[%emt 0:04:30]} Qb6 {[%emt 0:01:30]} 29. Qxb6 {[%emt 0:17:30]} Rxb6 {[%emt 0:00:30]} 30. Rxd5 {[%emt 0:00:30]} fxg5 {[%emt 0:01:30]} 31. Rxf8 {[%emt 0:00:30]} Kxf8 {[%emt 0:00:30]} 32. Rxg5 {[%emt 0:00:30]} Kf7 {[%emt 0:00:30]} 33. b4 {[%emt 0:00:30]} Kf6 {[%emt 0:00:30]} 34. Rc5 {[%emt 0:00:30]} Rb5 {[%emt 0:03:30]} 35. Kd2 {[%emt 0:12:54]} Rb6 {[%emt 0:00:30]} 36. Kc2 {[%emt 0:03:23]} Rd6 {[%emt 0:01:32]} 37. b5 {[%emt 0:01:31]} axb5 {[%emt 0:06:38]} 38. Rxb5 {[%emt 0:00:02]} b6 {[%emt 0:00:00]} 39. Kb3 {[%emt 0:01:22]} Ke6 {[%emt 0:01:18]} 40. Rb4 {[%emt 0:00:10]} Kf5 {[%emt 0:03:14]} 41. Ka4 {[%emt 0:00:17]} Ke6 {[%emt 0:05:24]} 42. Kb5 {[%emt 0:00:29]} Rd8 {[%emt 0:00:26]} 43. Kxb6 {[%emt 0:01:33]} Rb8+ {[%emt 0:00:07]} 44. Kc5 {[%emt 0:00:22]} Rc8+ {[%emt 0:00:30]} 45. Kb5 {[%emt 0:00:30]} Rb8+ {[%emt 0:00:00]} 46. Kc4 {[%emt 0:00:00]} Rc8+ {[%emt 0:00:00]} 47. Kd3 {[%emt 0:00:08]} Ke5 {[%emt 0:00:00]} 48. Rd4 {[%emt 0:00:02]} Rc6 {[%emt 0:00:17]} 49. b4 {[%emt 0:00:07]} Rc7 {[%emt 0:00:00]} 50. b5 {[%emt 0:01:15]} Rb7 {[%emt 0:02:03]} 51. Kc4 {[%emt 0:00:53]} Rc7+ {[%emt 0:00:03]} 52. Kb4 {[%emt 0:00:31]} Rc8 {[%emt 0:00:02]} 53. Rg4 {[%emt 0:00:06]} Kf5 {[%emt 0:00:33]} 54. Rc4 {[%emt 0:00:30]} Rb8 {[%emt 0:00:00]} 55. Ka5 {[%emt 0:00:00]} Ra8+ {[%emt 0:00:00]} 56. Kb6 {[%emt 0:00:21]} Rb8+ {[%emt 0:00:09]} 57. Ka6 {[%emt 0:00:00]} Ra8+ {[%emt 0:00:00]} 58. Kb7 {[%emt 0:00:09]} Ra5 {[%emt 0:00:00]} 59. b6 {[%emt 0:00:00]} Rb5 {[%emt 0:00:00]} 60. Kc6 {[%emt 0:00:00]} Rb1 {[%emt 0:00:27]} 61. b7 {[%emt 0:00:00]} Rb3 {[%emt 0:00:12]} 62. Kc7 {[%emt 0:00:02]} Rxb7+ {[%emt 0:00:21]} 63. Kxb7 {[%emt 0:00:03]} 1-0

[Event "Turkish Youth Championship 2024"]
[Site "Samsun"]
[Date "2024.05.24"]
[Round "9"]
[White "Tirpan, Ceren"]
[Black "Zerey, Demhat"]
[Result "1/2-1/2"]
[ECO "A13"]
[WhiteElo "2004"]
[BlackElo "1986"]
[Annotator "RC"]
[PlyCount "127"]
[EventDate "2024.05.18"]
[EventType "swiss"]
[EventCountry "TUR"]
[SourceTitle "playchess.com"]
[Source "ChessBase"]
[SourceQuality "1"]
[TimeControl "5400+30"]

1. c4 {[%emt 0:01:00]} e6 {[%emt 0:01:00]} 2. g3 {[%emt 0:00:00]} Nf6 {[%emt 0:00:30]} 3. Bg2 {[%emt 0:00:00]} d5 {[%emt 0:00:00]} 4. Nf3 {[%emt 0:01:30]} d4 {[%emt 0:00:00]} 5. b4 {[%emt 0:02:30]} Bxb4 {[%emt 0:01:30]} 6. Qa4+ {[%emt 0:03:30]} Nc6 {[%emt 0:00:30]} 7. Ne5 {[%emt 0:02:30]} Rb8 {[%emt 0:00:30]} 8. Nxc6 {[%emt 0:06:30]} bxc6 {[%emt 0:00:00]} 9. Bxc6+ {[%emt 0:00:00]} Bd7 {[%emt 0:00:00]} 10. O-O {[%emt 0:05:00]} O-O {[%emt 0:00:30]} 11. d3 {[%emt 0:03:30]} Rb6 {[%emt 0:10:30]} 12. Bxd7 {[%emt 0:02:30]} Nxd7 {[%emt 0:00:30]} 13. Nd2 {[%emt 0:04:30]} e5 {[%emt 0:13:30]} 14. Rb1 {[%emt 0:05:30]} Nc5 {[%emt 0:08:30]} 15. Qc2 {[%emt 0:02:30]} Ne6 {[%emt 0:03:30]} 16. a3 {[%emt 0:09:30]} Be7 {[%emt 0:00:00]} 17. Nf3 {[%emt 0:06:30]} Bd6 {[%emt 0:05:00]} 18. Bd2 {[%emt 0:11:30]} Qa8 {[%emt 0:03:30]} 19. Rxb6 {[%emt 0:03:30]} axb6 {[%emt 0:00:30]} 20. a4 {[%emt 0:00:00]} f5 {[%emt 0:01:30]} 21. a5 {[%emt 0:08:00]} e4 {[%emt 0:03:30]} 22. Nh4 {[%emt 0:01:30]} e3 {[%emt 0:17:30]} 23. fxe3 {[%emt 0:04:11]} dxe3 {[%emt 0:00:30]} 24. Bxe3 {[%emt 0:00:30]} f4 {[%emt 0:01:30]} 25. c5 {[%emt 0:04:53]} fxe3 {[%emt 0:00:30]} 26. Rxf8+ {[%emt 0:00:07]} Qxf8 {[%emt 0:00:30]} 27. Nf3 {[%emt 0:00:25]} Nxc5 {[%emt 0:00:30]} 28. d4 {[%emt 0:00:21]} Nd7 {[%emt 0:03:30]} 29. a6 {[%emt 0:01:05]} b5 {[%emt 0:05:30]} 30. Qb3+ {[%emt 0:03:33]} Kh8 {[%emt 0:00:30]} 31. Qxb5 {[%emt 0:00:06]} Nb6 {[%emt 0:00:00]} 32. Qd3 {[%emt 0:00:26]} c5 {[%emt 0:02:50]} 33. Qb5 {[%emt 0:01:22]} Na8 {[%emt 0:02:01]} 34. d5 {[%emt 0:02:20]} h6 {[%emt 0:00:35]} 35. Kg2 {[%emt 0:00:09]} Qd8 {[%emt 0:01:27]} 36. Nh4 {[%emt 0:01:10]} Qc8 {[%emt 0:01:39]} 37. Qb7 {[%emt 0:02:17]} Qxb7 {[%emt 0:01:25]} 38. axb7 {[%emt 0:00:30]} Nb6 {[%emt 0:00:30]} 39. Nf5 {[%emt 0:00:00]} Bb8 {[%emt 0:00:00]} 40. Nxe3 {[%emt 0:00:00]} c4 {[%emt 0:02:05]} 41. Kf3 {[%emt 0:00:00]} c3 {[%emt 0:00:43]} 42. Ke4 {[%emt 0:00:00]} Nc4 {[%emt 0:00:53]} 43. Nc2 {[%emt 0:00:00]} Nd6+ {[%emt 0:00:38]} 44. Kd3 {[%emt 0:00:05]} Kg8 {[%emt 0:00:00]} 45. Kxc3 {[%emt 0:00:20]} Nxb7 {[%emt 0:00:00]} 46. Kd4 {[%emt 0:00:15]} Kf7 {[%emt 0:00:02]} 47. Nb4 {[%emt 0:00:31]} Bd6 {[%emt 0:00:32]} 48. Nc6 {[%emt 0:00:44]} Bc5+ {[%emt 0:00:09]} 49. Kc4 {[%emt 0:00:47]} Bg1 {[%emt 0:00:15]} 50. Ne5+ {[%emt 0:00:58]} Kf6 {[%emt 0:00:41]} 51. Nf3 {[%emt 0:00:09]} Nd6+ {[%emt 0:00:07]} 52. Kd3 {[%emt 0:02:36]} Bb6 {[%emt 0:00:03]} 53. g4 {[%emt 0:03:10]} Nf7 {[%emt 0:00:16]} 54. Ke4 {[%emt 0:02:14]} Nd6+ {[%emt 0:00:37]} 55. Kd3 {[%emt 0:00:03]} Ba7 {[%emt 0:00:11]} 56. h4 {[%emt 0:00:26]} Nf7 {[%emt 0:00:39]} 57. Ke4 {[%emt 0:00:23]} Nd6+ {[%emt 0:00:38]} 58. Kf4 {[%emt 0:00:21]} Bb8 {[%emt 0:02:01]} 59. g5+ {[%emt 0:00:06]} hxg5+ {[%emt 0:00:11]} 60. hxg5+ {[%emt 0:00:16]} Ke7 {[%emt 0:00:55]} 61. e4 {[%emt 0:01:26]} Nb5+ {[%emt 0:00:01]} 62. e5 {[%emt 0:00:51]} Nc3 {[%emt 0:00:05]} 63. d6+ {[%emt 0:00:09]} Kd7 {[%emt 0:01:49]} 64. Kf5 {[%emt 0:00:11]} 1/2-1/2

[Event "Turkish Youth Championship 2024"]
[Site "Samsun"]
[Date "2024.05.24"]
[Round "9"]
[White "Dogan, Umut Anil"]
[Black "Ilgaz, Yusuf Kerem"]
[Result "1-0"]
[ECO "A09"]
[WhiteElo "1959"]
[BlackElo "1964"]
[Annotator "RC"]
[PlyCount "101"]
[EventDate "2024.05.18"]
[EventType "swiss"]
[EventCountry "TUR"]
[SourceTitle "playchess.com"]
[Source "ChessBase"]
[SourceQuality "1"]
[TimeControl "5400+30"]

1. Nf3 {[%emt 0:01:00]} d5 {[%emt 0:01:00]} 2. g3 {[%emt 0:00:30]} g6 {[%emt 0:00:30]} 3. c4 {[%emt 0:00:30]} dxc4 {[%emt 0:00:30]} 4. Na3 {[%emt 0:00:00]} Bg7 {[%emt 0:00:30]} 5. Nxc4 {[%emt 0:00:00]} Nc6 {[%emt 0:00:30]} 6. d3 {[%emt 0:03:30]} e5 {[%emt 0:00:00]} 7. Bg2 {[%emt 0:00:30]} e4 {[%emt 0:03:00]} 8. dxe4 {[%emt 0:02:30]} Qxd1+ {[%emt 0:00:30]} 9. Kxd1 {[%emt 0:00:00]} Nf6 {[%emt 0:00:00]} 10. Ne1 {[%emt 0:06:00]} Ng4 {[%emt 0:09:00]} 11. Nd3 {[%emt 0:03:30]} Be6 {[%emt 0:01:30]} 12. Ne3 {[%emt 0:01:30]} O-O-O {[%emt 0:03:30]} 13. Nd5 {[%emt 0:24:30]} f5 {[%emt 0:08:30]} 14. f3 {[%emt 0:01:30]} fxe4 {[%emt 0:03:30]} 15. fxe4 {[%emt 0:00:30]} Nce5 {[%emt 0:14:30]} 16. N5f4 {[%emt 0:08:30]} Bc4 {[%emt 0:12:30]} 17. Kc2 {[%emt 0:02:30]} Rhe8 {[%emt 0:08:30]} 18. Bd2 {[%emt 0:08:30]} Bxd3+ {[%emt 0:07:30]} 19. exd3 {[%emt 0:02:30]} Nf2 {[%emt 0:00:30]} 20. Rhf1 {[%emt 0:01:30]} Nexd3 {[%emt 0:00:30]} 21. Nxd3 {[%emt 0:11:58]} Nxd3 {[%emt 0:00:30]} 22. Bc3 {[%emt 0:04:34]} Bxc3 {[%emt 0:00:30]} 23. Kxc3 {[%emt 0:00:35]} Nc5 {[%emt 0:01:30]} 24. Rae1 {[%emt 0:00:43]} Re7 {[%emt 0:05:54]} 25. e5 {[%emt 0:02:10]} c6 {[%emt 0:01:53]} 26. Bh3+ {[%emt 0:03:31]} Kc7 {[%emt 0:00:07]} 27. e6 {[%emt 0:02:24]} Rde8 {[%emt 0:03:45]} 28. Rf7 {[%emt 0:00:57]} Kd6 {[%emt 0:03:35]} 29. Rd1+ {[%emt 0:03:14]} Kc7 {[%emt 0:01:23]} 30. Re1 {[%emt 0:00:15]} Kd6 {[%emt 0:01:48]} 31. Rd1+ {[%emt 0:01:12]} Kc7 {[%emt 0:00:13]} 32. b4 {[%emt 0:00:38]} Ne4+ {[%emt 0:02:51]} 33. Kd4 {[%emt 0:01:06]} Nf2 {[%emt 0:05:53]} 34. Rxf2 {[%emt 0:03:29]} Rd8+ {[%emt 0:00:07]} 35. Ke5 {[%emt 0:00:00]} Rxd1 {[%emt 0:00:23]} 36. Rf7 {[%emt 0:00:00]} Kd8 {[%emt 0:00:49]} 37. Kf6 {[%emt 0:00:00]} Re8 {[%emt 0:00:40]} 38. Rxb7 {[%emt 0:00:42]} Rf8+ {[%emt 0:00:34]} 39. Kg7 {[%emt 0:01:34]} Rf2 {[%emt 0:00:45]} 40. Rf7 {[%emt 0:00:07]} Rdd2 {[%emt 0:00:15]} 41. Kf8 {[%emt 0:01:03]} Rxf7+ {[%emt 0:00:51]} 42. exf7 {[%emt 0:00:11]} Rf2 {[%emt 0:00:00]} 43. Be6 {[%emt 0:00:33]} h5 {[%emt 0:00:28]} 44. h4 {[%emt 0:00:32]} Rf3 {[%emt 0:00:28]} 45. a4 {[%emt 0:00:52]} Rf6 {[%emt 0:00:28]} 46. Bh3 {[%emt 0:00:29]} Rf2 {[%emt 0:00:33]} 47. a5 {[%emt 0:00:30]} Rf6 {[%emt 0:00:35]} 48. Bg2 {[%emt 0:01:01]} Kd7 {[%emt 0:00:16]} 49. Bxc6+ {[%emt 0:00:34]} Kxc6 {[%emt 0:00:52]} 50. Kg7 {[%emt 0:00:18]} Rf2 {[%emt 0:00:27]} 51. f8=Q {[%emt 0:00:15]} 1-0

[Event "Turkish Youth Championship 2024"]
[Site "Samsun"]
[Date "2024.05.24"]
[Round "9"]
[White "Basara, Arda"]
[Black "Bilgi, Ali Erdem"]
[Result "0-1"]
[ECO "A41"]
[WhiteElo "1943"]
[BlackElo "1642"]
[Annotator "RC"]
[PlyCount "64"]
[EventDate "2024.05.18"]
[EventType "swiss"]
[EventCountry "TUR"]
[SourceTitle "playchess.com"]
[Source "ChessBase"]
[SourceQuality "1"]
[TimeControl "5400+30"]

1. d4 {[%emt 0:02:00]} d6 {[%emt 0:01:00]} 2. c4 {[%emt 0:00:30]} e5 {[%emt 0:00:00]} 3. d5 {[%emt 0:00:30]} g6 {[%emt 0:00:00]} 4. Nc3 {[%emt 0:00:30]} a5 {[%emt 0:00:00]} 5. h4 {[%emt 0:02:30]} h5 {[%emt 0:01:00]} 6. Nf3 {[%emt 0:07:30]} Bh6 {[%emt 0:01:30]} 7. e4 {[%emt 0:06:30]} Bxc1 {[%emt 0:01:30]} 8. Rxc1 {[%emt 0:02:30]} Bd7 {[%emt 0:05:30]} 9. Be2 {[%emt 0:01:30]} Na6 {[%emt 0:00:30]} 10. a3 {[%emt 0:03:30]} Nf6 {[%emt 0:00:30]} 11. Ng5 {[%emt 0:00:30]} O-O {[%emt 0:02:30]} 12. O-O {[%emt 0:00:30]} Qe8 {[%emt 0:04:30]} 13. b3 {[%emt 0:01:30]} Qe7 {[%emt 0:05:30]} 14. g3 {[%emt 0:10:30]} Nh7 {[%emt 0:02:30]} 15. Nxh7 {[%emt 0:03:30]} Kxh7 {[%emt 0:00:30]} 16. Bd3 {[%emt 0:05:30]} Nc5 {[%emt 0:02:30]} 17. b4 {[%emt 0:03:30]} axb4 {[%emt 0:00:30]} 18. axb4 {[%emt 0:00:30]} Na4 {[%emt 0:00:30]} 19. Kg2 {[%emt 0:00:30]} Nxc3 {[%emt 0:00:30]} 20. Rxc3 {[%emt 0:00:30]} Ra4 {[%emt 0:00:30]} 21. Rb3 {[%emt 0:00:30]} Kg7 {[%emt 0:00:30]} 22. Qe2 {[%emt 0:00:30]} Rfa8 {[%emt 0:05:30]} 23. c5 {[%emt 0:16:30]} dxc5 {[%emt 0:06:30]} 24. bxc5 {[%emt 0:00:30]} Qxc5 {[%emt 0:00:30]} 25. Rxb7 {[%emt 0:00:00]} Ra2 {[%emt 0:02:30]} 26. Rb2 {[%emt 0:00:00]} R2a3 {[%emt 0:00:30]} 27. Rc2 {[%emt 0:04:30]} Rc3 {[%emt 0:03:30]} 28. Rfc1 {[%emt 0:01:30]} Rxc2 {[%emt 0:00:30]} 29. Rxc2 {[%emt 0:00:30]} Qb6 {[%emt 0:00:30]} 30. Qd2 {[%emt 0:02:30]} Ra3 {[%emt 0:03:30]} 31. f3 {[%emt 0:05:02]} Ba4 {[%emt 0:05:30]} 32. Rb2 {[%emt 0:00:24]} Rxd3 {[%emt 0:00:30]} 0-1

[Event "Turkish Youth Championship 2024"]
[Site "Samsun"]
[Date "2024.05.24"]
[Round "9"]
[White "Buyuk, Ecrin Efsa"]
[Black "Cetindag, Alper"]
[Result "0-1"]
[ECO "B21"]
[WhiteElo "1892"]
[BlackElo "1839"]
[Annotator "NA RC"]
[PlyCount "54"]
[EventDate "2024.05.18"]
[EventType "swiss"]
[EventCountry "TUR"]
[SourceTitle "playchess.com"]
[Source "ChessBase"]
[SourceQuality "1"]
[TimeControl "5400+30"]

1. e4 {[%emt 0:01:00]} c5 {[%emt 0:01:00]} 2. Be2 {[%emt 0:00:00]} Nc6 {[%emt 0:03:30]} 3. f4 {[%emt 0:00:00]} d6 {[%emt 0:03:30]} 4. Nf3 {[%emt 0:00:30]} g6 {[%emt 0:00:30]} 5. O-O {[%emt 0:00:00]} Bg7 {[%emt 0:00:30]} 6. d3 {[%emt 0:00:00]} e6 {[%emt 0:00:30]} 7. c3 {[%emt 0:01:30]} Nge7 {[%emt 0:01:30]} 8. Be3 {[%emt 0:00:00]} O-O {[%emt 0:02:30]} 9. d4 {[%emt 0:01:00]} f5 {[%emt 0:05:30]} 10. e5 {[%emt 0:02:30]} Nd5 {[%emt 0:00:30]} 11. Qd2 {[%emt 0:01:30]} Nxe3 {[%emt 0:01:30]} 12. Qxe3 {[%emt 0:00:00]} Ne7 {[%emt 0:37:30]} 13. Rd1 {[%emt 0:17:00]} Nd5 {[%emt 0:00:30]} 14. Qd2 {[%emt 0:00:30]} Bh6 {[%emt 0:00:30]} 15. g3 {[%emt 0:00:30]} cxd4 {[%emt 0:03:30]} 16. cxd4 {[%emt 0:07:30]} dxe5 {[%emt 0:01:30]} 17. dxe5 {[%emt 0:09:30]} Bd7 {[%emt 0:03:30]} 18. Nc3 {[%emt 0:06:30]} Bc6 {[%emt 0:01:30]} 19. Nd4 {[%emt 0:20:30]} Qb6 {[%emt 0:01:30]} 20. h3 {[%emt 0:00:30]} Rfd8 {[%emt 0:01:30]} 21. Kh2 {[%emt 0:00:30]} Bf8 {[%emt 0:06:30]} 22. Bc4 {[%emt 0:03:30]} Nc7 {[%emt 0:02:38]} 23. Nce2 {[%emt 0:06:30]} Bc5 {[%emt 0:03:11]} 24. Qc3 {[%emt 0:05:42]} Be4 {[%emt 0:02:30]} 25. a3 {[%emt 0:09:44]} a5 {[%emt 0:01:13]} 26. Rac1 {[%emt 0:02:32]} Rac8 {[%emt 0:00:41]} 27. Nxe6 {[%emt 0:01:31]} Bg1+ {[%emt 0:00:28]} 0-1